fUST/lending_fUST_20260520
["ID","MTS","AMOUNT","RATE_DAILY","PERIOD"]
[422709422,1779287235000,-500.0,8.219e-05,2]
[422709421,1779287235000,-500.0,8.219e-05,2]
[422709419,1779287235000,-500.0,8.219e-05,2]
[422709437,1779287236000,-434.31675802,8.219e-05,2]
[422709435,1779287236000,-664.16,8.219e-05,2]
[422709436,1779287236000,-500.0,8.219e-05,2]
[422709440,1779287385000,260.77771065,7.808e-05,2]
[422709439,1779287385000,239.22228935,7.808e-05,2]
[422709463,1779287433000,-537.6845,8.113e-05,2]
[422709464,1779287433000,-198.678814,8.156e-05,2]
[422709467,1779287433000,-160.0,8.168e-05,2]
[422709468,1779287433000,-529.04437036,8.168e-05,2]
[422709466,1779287433000,-161.70661154,8.168e-05,2]
[422709465,1779287433000,-766.43500783,8.168e-05,2]
[422709488,1779287438000,-300.0,8.217e-05,2]
[422709489,1779287438000,-379.0,8.217e-05,2]
[422709487,1779287438000,-28.53445614,8.168e-05,2]
[422709490,1779287438000,-160.0,8.218e-05,2]
[422709495,1779287438000,-500.0,8.218e-05,2]
[422709494,1779287438000,-500.0,8.218e-05,2]
[422709496,1779287438000,-500.0,8.218e-05,2]
[422709497,1779287438000,-559.2997876,8.218e-05,2]
[422709493,1779287438000,-353.80616106,8.218e-05,2]
[422709491,1779287438000,-500.0,8.218e-05,2]
[422709499,1779287438000,-566.52282876,8.218e-05,2]
[422709511,1779287438000,-566.52282876,8.218e-05,2]
[422709492,1779287438000,-500.0,8.218e-05,2]
[422709498,1779287438000,-566.52282876,8.218e-05,2]
[422709510,1779287438000,-566.52282876,8.218e-05,2]
[422709514,1779287438000,-566.52282876,8.218e-05,2]
[422709515,1779287438000,-566.52282876,8.218e-05,2]
[422709513,1779287438000,-566.52282876,8.218e-05,2]
[422709502,1779287438000,-566.52282876,8.218e-05,2]
[422709508,1779287438000,-566.52282876,8.218e-05,2]
[422709507,1779287438000,-566.52282876,8.218e-05,2]
[422709504,1779287438000,-566.52282876,8.218e-05,2]
[422709505,1779287438000,-566.52282876,8.218e-05,2]
[422709503,1779287438000,-566.52282876,8.218e-05,2]
[422709500,1779287438000,-566.52282876,8.218e-05,2]
[422709501,1779287438000,-566.52282876,8.218e-05,2]
[422709506,1779287438000,-566.52282876,8.218e-05,2]
[422709550,1779287439000,-845.69,8.219e-05,2]
[422709553,1779287439000,-500.0,8.219e-05,2]
[422709557,1779287439000,-500.0,8.219e-05,2]
[422709552,1779287439000,-500.0,8.219e-05,2]
[422709554,1779287439000,-1293.53,8.219e-05,2]
[422709558,1779287439000,-1066.839577,8.219e-05,2]
[422709555,1779287439000,-500.0,8.219e-05,2]
[422709549,1779287439000,-500.0,8.219e-05,2]
[422709559,1779287439000,-500.0,8.219e-05,2]
[422709556,1779287439000,-500.0,8.219e-05,2]
[422709547,1779287439000,-500.0,8.219e-05,2]
[422709551,1779287439000,-500.0,8.219e-05,2]
[422709560,1779287439000,-1066.839577,8.219e-05,2]
[422709574,1779287439000,-1066.839577,8.219e-05,2]
[422709561,1779287439000,-1066.839577,8.219e-05,2]
[422709573,1779287439000,-1066.839577,8.219e-05,2]
[422709563,1779287439000,-1066.839577,8.219e-05,2]
[422709572,1779287439000,-1066.839577,8.219e-05,2]
[422709565,1779287439000,-1066.839577,8.219e-05,2]
[422709566,1779287439000,-1066.839577,8.219e-05,2]
[422709564,1779287439000,-1066.839577,8.219e-05,2]
[422709571,1779287439000,-658.1,8.219e-05,2]
[422709562,1779287439000,-1066.839577,8.219e-05,2]
[422709569,1779287439000,-1066.839577,8.219e-05,2]
[422709570,1779287439000,-1066.839577,8.219e-05,2]
[422709568,1779287439000,-1066.839577,8.219e-05,2]
[422709575,1779287439000,-1066.839577,8.219e-05,2]
[422709548,1779287439000,-500.0,8.219e-05,2]
[422709567,1779287439000,-1066.839577,8.219e-05,2]
[422709584,1779287439000,-500.0,8.219e-05,2]
[422709532,1779287439000,-500.0,8.219e-05,2]
[422709541,1779287439000,-578.25,8.219e-05,2]
[422709517,1779287439000,-594.8489702,8.218e-05,2]
[422709518,1779287439000,-594.8489702,8.218e-05,2]
[422709521,1779287439000,-594.8489702,8.218e-05,2]
[422709516,1779287439000,-594.8489702,8.218e-05,2]
[422709524,1779287439000,-690.02480542,8.218e-05,2]
[422709525,1779287439000,-65.68324198,8.219e-05,2]
[422709519,1779287439000,-594.8489702,8.218e-05,2]
[422709523,1779287439000,-594.8489702,8.218e-05,2]
[422709522,1779287439000,-594.8489702,8.218e-05,2]
[422709520,1779287439000,-594.8489702,8.218e-05,2]
[422709526,1779287439000,-500.0,8.219e-05,2]
[422709528,1779287439000,-500.0,8.219e-05,2]
[422709529,1779287439000,-500.0,8.219e-05,2]
[422709546,1779287439000,-702.24,8.219e-05,2]
[422709531,1779287439000,-500.0,8.219e-05,2]
[422709527,1779287439000,-500.0,8.219e-05,2]
[422709530,1779287439000,-500.0,8.219e-05,2]
[422709534,1779287439000,-500.0,8.219e-05,2]
[422709536,1779287439000,-500.0,8.219e-05,2]
[422709535,1779287439000,-781.65,8.219e-05,2]
[422709537,1779287439000,-500.0,8.219e-05,2]
[422709542,1779287439000,-500.0,8.219e-05,2]
[422709538,1779287439000,-500.0,8.219e-05,2]
[422709540,1779287439000,-500.0,8.219e-05,2]
[422709543,1779287439000,-500.0,8.219e-05,2]
[422709539,1779287439000,-1260.22,8.219e-05,2]
[422709545,1779287439000,-500.0,8.219e-05,2]
[422709544,1779287439000,-500.0,8.219e-05,2]
[422709533,1779287439000,-500.0,8.219e-05,2]
[422709587,1779287439000,-836.84,8.219e-05,2]
[422709606,1779287439000,-500.0,8.219e-05,2]
[422709583,1779287439000,-500.0,8.219e-05,2]
[422709614,1779287439000,-184.42739678,8.219e-05,2]
[422709623,1779287439000,-500.0,8.219e-05,2]
[422709625,1779287439000,-679.08,8.219e-05,2]
[422709622,1779287439000,-500.0,8.219e-05,2]
[422709624,1779287439000,-1353.35,8.219e-05,2]
[422709615,1779287439000,-500.0,8.219e-05,2]
[422709613,1779287439000,-500.0,8.219e-05,2]
[422709616,1779287439000,-552.36,8.219e-05,2]
[422709618,1779287439000,-1140.89,8.219e-05,2]
[422709617,1779287439000,-500.0,8.219e-05,2]
[422709620,1779287439000,-500.0,8.219e-05,2]
[422709619,1779287439000,-527.08,8.219e-05,2]
[422709621,1779287439000,-722.72,8.219e-05,2]
[422709609,1779287439000,-2648.51,8.219e-05,2]
[422709626,1779287439000,-500.0,8.219e-05,2]
[422709627,1779287439000,-500.0,8.219e-05,2]
[422709630,1779287439000,-603.68,8.219e-05,2]
[422709634,1779287439000,-879.65,8.219e-05,2]
[422709632,1779287439000,-1144.88,8.219e-05,2]
[422709633,1779287439000,-500.0,8.219e-05,2]
[422709628,1779287439000,-500.0,8.219e-05,2]
[422709629,1779287439000,-1236.95,8.219e-05,2]
[422709635,1779287439000,-500.0,8.219e-05,2]
[422709636,1779287439000,-181.22683022,8.219e-05,2]
[422709638,1779287439000,-500.0,8.219e-05,2]
[422709639,1779287439000,-537.72,8.219e-05,2]
[422709641,1779287439000,-2710.06,8.219e-05,2]
[422709576,1779287439000,-500.0,8.219e-05,2]
[422709631,1779287439000,-500.0,8.219e-05,2]
[422709608,1779287439000,-588.98,8.219e-05,2]
[422709640,1779287439000,-500.0,8.219e-05,2]
[422709603,1779287439000,-500.0,8.219e-05,2]
[422709607,1779287439000,-500.0,8.219e-05,2]
[422709586,1779287439000,-500.0,8.219e-05,2]
[422709578,1779287439000,-151.0,8.219e-05,2]
[422709579,1779287439000,-500.0,8.219e-05,2]
[422709577,1779287439000,-500.0,8.219e-05,2]
[422709580,1779287439000,-500.0,8.219e-05,2]
[422709581,1779287439000,-500.0,8.219e-05,2]
[422709582,1779287439000,-500.0,8.219e-05,2]
[422709589,1779287439000,-141.38485892,8.219e-05,2]
[422709588,1779287439000,-358.61514108,8.219e-05,2]
[422709590,1779287439000,-500.0,8.219e-05,2]
[422709594,1779287439000,-500.0,8.219e-05,2]
[422709591,1779287439000,-884.88,8.219e-05,2]
[422709592,1779287439000,-500.0,8.219e-05,2]
[422709585,1779287439000,-500.0,8.219e-05,2]
[422709598,1779287439000,-500.0,8.219e-05,2]
[422709610,1779287439000,-733.69,8.219e-05,2]
[422709611,1779287439000,-500.0,8.219e-05,2]
[422709600,1779287439000,-1308.75,8.219e-05,2]
[422709605,1779287439000,-500.0,8.219e-05,2]
[422709593,1779287439000,-545.76,8.219e-05,2]
[422709604,1779287439000,-500.0,8.219e-05,2]
[422709612,1779287439000,-2972.85,8.219e-05,2]
[422709601,1779287439000,-500.0,8.219e-05,2]
[422709599,1779287439000,-500.0,8.219e-05,2]
[422709596,1779287439000,-374.51235923,8.219e-05,2]
[422709597,1779287439000,-500.0,8.219e-05,2]
[422709595,1779287439000,-125.48764077,8.219e-05,2]
[422709602,1779287439000,-500.0,8.219e-05,2]
[422709689,1779287440000,-842.84,8.219e-05,2]
[422709686,1779287440000,-500.0,8.219e-05,2]
[422709690,1779287440000,-1447.92,8.219e-05,2]
[422709684,1779287440000,-500.0,8.219e-05,2]
[422709678,1779287440000,-629.95,8.219e-05,2]
[422709680,1779287440000,-500.0,8.219e-05,2]
[422709672,1779287440000,-649.87,8.219e-05,2]
[422709673,1779287440000,-500.0,8.219e-05,2]
[422709671,1779287440000,-500.0,8.219e-05,2]
[422709670,1779287440000,-500.0,8.219e-05,2]
[422709682,1779287440000,-500.0,8.219e-05,2]
[422709691,1779287440000,-500.0,8.219e-05,2]
[422709707,1779287440000,-2111.4,8.219e-05,2]
[422709688,1779287440000,-500.0,8.219e-05,2]
[422709693,1779287440000,-500.0,8.219e-05,2]
[422709697,1779287440000,-500.0,8.219e-05,2]
[422709704,1779287440000,-500.0,8.219e-05,2]
[422709708,1779287440000,-2916.5,8.219e-05,2]
[422709705,1779287440000,-739.54,8.219e-05,2]
[422709706,1779287440000,-2273.16,8.219e-05,2]
[422709702,1779287440000,-500.0,8.219e-05,2]
[422709701,1779287440000,-563.96,8.219e-05,2]
[422709699,1779287440000,-500.0,8.219e-05,2]
[422709700,1779287440000,-500.0,8.219e-05,2]
[422709698,1779287440000,-500.0,8.219e-05,2]
[422709669,1779287440000,-500.0,8.219e-05,2]
[422709694,1779287440000,-1604.78,8.219e-05,2]
[422709667,1779287440000,-500.0,8.219e-05,2]
[422709660,1779287440000,-500.0,8.219e-05,2]
[422709677,1779287440000,-500.0,8.219e-05,2]
[422709703,1779287440000,-3178.92,8.219e-05,2]
[422709651,1779287440000,-500.0,8.219e-05,2]
[422709652,1779287440000,-500.0,8.219e-05,2]
[422709642,1779287440000,-500.13070308,8.219e-05,2]
[422709650,1779287440000,-500.0,8.219e-05,2]
[422709644,1779287440000,-1454.16,8.219e-05,2]
[422709643,1779287440000,-500.0,8.219e-05,2]
[422709648,1779287440000,-500.0,8.219e-05,2]
[422709646,1779287440000,-500.0,8.219e-05,2]
[422709647,1779287440000,-500.0,8.219e-05,2]
[422709649,1779287440000,-500.0,8.219e-05,2]
[422709653,1779287440000,-500.0,8.219e-05,2]
[422709654,1779287440000,-500.0,8.219e-05,2]
[422709659,1779287440000,-500.0,8.219e-05,2]
[422709656,1779287440000,-500.0,8.219e-05,2]
[422709657,1779287440000,-500.0,8.219e-05,2]
[422709664,1779287440000,-786.06,8.219e-05,2]
[422709661,1779287440000,-555.47,8.219e-05,2]
[422709655,1779287440000,-500.0,8.219e-05,2]
[422709662,1779287440000,-500.0,8.219e-05,2]
[422709663,1779287440000,-618.1477,8.219e-05,2]
[422709658,1779287440000,-788.8,8.219e-05,2]
[422709666,1779287440000,-500.0,8.219e-05,2]
[422709674,1779287440000,-1031.7,8.219e-05,2]
[422709665,1779287440000,-500.0,8.219e-05,2]
[422709675,1779287440000,-500.0,8.219e-05,2]
[422709676,1779287440000,-500.0,8.219e-05,2]
[422709668,1779287440000,-500.0,8.219e-05,2]
[422709709,1779287440000,-568.13,8.219e-05,2]
[422709645,1779287440000,-500.0,8.219e-05,2]
[422709711,1779287440000,-500.0,8.219e-05,2]
[422709744,1779287440000,-1581.86,8.219e-05,2]
[422709745,1779287440000,-500.0,8.219e-05,2]
[422709747,1779287440000,-500.0,8.219e-05,2]
[422709749,1779287440000,-500.0,8.219e-05,2]
[422709750,1779287440000,-425.84260866,8.219e-05,2]
[422709759,1779287440000,-500.0,8.219e-05,2]
[422709754,1779287440000,-6652.11,8.219e-05,2]
[422709761,1779287440000,-2560.8148,8.219e-05,2]
[422709751,1779287440000,-2189.39,8.219e-05,2]
[422709757,1779287440000,-500.0,8.219e-05,2]
[422709752,1779287440000,-500.0,8.219e-05,2]
[422709758,1779287440000,-639.16,8.219e-05,2]
[422709762,1779287440000,-500.0,8.219e-05,2]
[422709760,1779287440000,-1494.17,8.219e-05,2]
[422709756,1779287440000,-500.0,8.219e-05,2]
[422709753,1779287440000,-500.0,8.219e-05,2]
[422709755,1779287440000,-531.14,8.219e-05,2]
[422709763,1779287440000,-2782.6,8.219e-05,2]
[422709765,1779287440000,-151.0,8.219e-05,2]
[422709764,1779287440000,-2963.33,8.219e-05,2]
[422709768,1779287440000,-500.0,8.219e-05,2]
[422709767,1779287440000,-202.696786,8.219e-05,2]
[422709771,1779287440000,-963.21,8.219e-05,2]
[422709772,1779287440000,-1150.18064467,8.219e-05,2]
[422709766,1779287440000,-151.0,8.219e-05,2]
[422709769,1779287440000,-729.74,8.219e-05,2]
[422709713,1779287440000,-500.0,8.219e-05,2]
[422709746,1779287440000,-5416.25,8.219e-05,2]
[422709748,1779287440000,-32262.5,8.219e-05,2]
[422709770,1779287440000,-1839.86,8.219e-05,2]
[422709737,1779287440000,-1095.66,8.219e-05,2]
[422709743,1779287440000,-1874.41,8.219e-05,2]
[422709712,1779287440000,-500.0,8.219e-05,2]
[422709710,1779287440000,-564.82083328,8.219e-05,2]
[422709721,1779287440000,-1931.36,8.219e-05,2]
[422709718,1779287440000,-500.0,8.219e-05,2]
[422709716,1779287440000,-378.75,8.219e-05,2]
[422709714,1779287440000,-500.0,8.219e-05,2]
[422709717,1779287440000,-500.0,8.219e-05,2]
[422709715,1779287440000,-500.0,8.219e-05,2]
[422709719,1779287440000,-2761.19,8.219e-05,2]
[422709722,1779287440000,-500.0,8.219e-05,2]
[422709723,1779287440000,-2622.43,8.219e-05,2]
[422709724,1779287440000,-500.0,8.219e-05,2]
[422709720,1779287440000,-764.44,8.219e-05,2]
[422709727,1779287440000,-2035.93,8.219e-05,2]
[422709738,1779287440000,-4376.84,8.219e-05,2]
[422709726,1779287440000,-500.0,8.219e-05,2]
[422709741,1779287440000,-6334.53,8.219e-05,2]
[422709736,1779287440000,-500.0,8.219e-05,2]
[422709731,1779287440000,-500.0,8.219e-05,2]
[422709730,1779287440000,-500.0,8.219e-05,2]
[422709740,1779287440000,-854.87,8.219e-05,2]
[422709733,1779287440000,-500.0,8.219e-05,2]
[422709728,1779287440000,-2107.84,8.219e-05,2]
[422709725,1779287440000,-500.0,8.219e-05,2]
[422709734,1779287440000,-2186.77,8.219e-05,2]
[422709729,1779287440000,-500.0,8.219e-05,2]
[422709735,1779287440000,-500.0,8.219e-05,2]
[422709827,1779287444000,-578.81781684,8.219e-05,2]
[422709825,1779287444000,-586.84,8.219e-05,2]
[422709822,1779287444000,-4383.40935533,8.219e-05,2]
[422709878,1779287447000,-199.507793,8.219e-05,2]
[422709883,1779287447000,-500.0,8.219e-05,2]
[422709895,1779287447000,-537.38702086,8.219e-05,2]
[422709875,1779287447000,-3152.53,8.219e-05,2]
[422709886,1779287447000,-500.0,8.219e-05,2]
[422709885,1779287447000,-199.507793,8.219e-05,2]
[422709890,1779287447000,-199.507793,8.219e-05,2]
[422709884,1779287447000,-199.507793,8.219e-05,2]
[422709892,1779287447000,-7109.99,8.219e-05,2]
[422709894,1779287447000,-500.0,8.219e-05,2]
[422709887,1779287447000,-199.507793,8.219e-05,2]
[422709888,1779287447000,-199.507793,8.219e-05,2]
[422709882,1779287447000,-500.0,8.219e-05,2]
[422709889,1779287447000,-500.0,8.219e-05,2]
[422709891,1779287447000,-199.507793,8.219e-05,2]
[422709879,1779287447000,-500.0,8.219e-05,2]
[422709898,1779287447000,-500.0,8.219e-05,2]
[422709893,1779287447000,-500.0,8.219e-05,2]
[422709871,1779287447000,-151.0,8.219e-05,2]
[422709862,1779287447000,-1035.4,8.219e-05,2]
[422709877,1779287447000,-500.0,8.219e-05,2]
[422709896,1779287447000,-2848.98,8.219e-05,2]
[422709860,1779287447000,-886.04,8.219e-05,2]
[422709859,1779287447000,-1593.67218316,8.219e-05,2]
[422709861,1779287447000,-1455.72,8.219e-05,2]
[422709863,1779287447000,-1850.17,8.219e-05,2]
[422709868,1779287447000,-4688.08,8.219e-05,2]
[422709867,1779287447000,-2025.48,8.219e-05,2]
[422709864,1779287447000,-500.0,8.219e-05,2]
[422709865,1779287447000,-500.0,8.219e-05,2]
[422709866,1779287447000,-500.0,8.219e-05,2]
[422709870,1779287447000,-151.0,8.219e-05,2]
[422709869,1779287447000,-151.0,8.219e-05,2]
[422709880,1779287447000,-500.0,8.219e-05,2]
[422709872,1779287447000,-151.0,8.219e-05,2]
[422709881,1779287447000,-199.507793,8.219e-05,2]
[422709876,1779287447000,-500.0,8.219e-05,2]
[422709873,1779287447000,-387.88771919,8.219e-05,2]
[422709874,1779287447000,-663.69,8.219e-05,2]
[422709899,1779287447000,-188.26636368,8.219e-05,4]
[422709918,1779287447000,-300.0,8.28e-05,2]
[422709897,1779287447000,-500.0,8.219e-05,2]
[422709932,1779287447000,-151.0,8.397e-05,2]
[422709928,1779287447000,-537.38702082,8.356e-05,2]
[422709931,1779287447000,-151.0,8.397e-05,2]
[422709926,1779287447000,-600.0,8.28e-05,2]
[422709924,1779287447000,-300.0,8.28e-05,2]
[422709927,1779287447000,-152.0,8.332e-05,30]
[422709933,1779287447000,-199.507793,8.397e-05,2]
[422709930,1779287447000,-362.1680712,8.372e-05,2]
[422709929,1779287447000,-376.53272735,8.369e-05,4]
[422709935,1779287447000,-199.507793,8.397e-05,2]
[422709937,1779287447000,-319.86701837,8.397e-05,2]
[422709936,1779287447000,-199.507793,8.397e-05,2]
[422709938,1779287447000,-186.27067856,8.4e-05,2]
[422709943,1779287447000,-919.05830366,8.493e-05,2]
[422709906,1779287447000,-578.20924308,8.223e-05,2]
[422709941,1779287447000,-573.6508,8.493e-05,2]
[422709940,1779287447000,-160.93639695,8.4e-05,2]
[422709939,1779287447000,-343.63929542,8.4e-05,2]
[422709934,1779287447000,-199.507793,8.397e-05,2]
[422709925,1779287447000,-300.0,8.28e-05,2]
[422709942,1779287447000,-1729.5478,8.493e-05,2]
[422709922,1779287447000,-300.0,8.28e-05,2]
[422709923,1779287447000,-300.0,8.28e-05,2]
[422709902,1779287447000,-181.0840356,8.219e-05,2]
[422709907,1779287447000,-738.79307264,8.278e-05,2]
[422709900,1779287447000,-159.93350918,8.219e-05,2]
[422709905,1779287447000,-1768.8658947,8.219e-05,2]
[422709901,1779287447000,-500.0,8.219e-05,2]
[422709904,1779287447000,-152.030245,8.219e-05,2]
[422709908,1779287447000,-300.0,8.28e-05,2]
[422709909,1779287447000,-300.0,8.28e-05,2]
[422709903,1779287447000,-171.81964771,8.219e-05,2]
[422709913,1779287447000,-300.0,8.28e-05,2]
[422709911,1779287447000,-300.0,8.28e-05,2]
[422709914,1779287447000,-300.0,8.28e-05,2]
[422709915,1779287447000,-300.0,8.28e-05,2]
[422709917,1779287447000,-300.0,8.28e-05,2]
[422709912,1779287447000,-300.0,8.28e-05,2]
[422709920,1779287447000,-300.0,8.28e-05,2]
[422709910,1779287447000,-300.0,8.28e-05,2]
[422709960,1779287448000,-578.25,8.493e-05,2]
[422709964,1779287448000,-702.24,8.493e-05,2]
[422709963,1779287448000,-500.0,8.493e-05,2]
[422709965,1779287448000,-500.0,8.493e-05,2]
[422709966,1779287448000,-500.0,8.493e-05,2]
[422709969,1779287448000,-500.0,8.493e-05,2]
[422709973,1779287448000,-658.1,8.493e-05,2]
[422709970,1779287448000,-1293.53,8.493e-05,2]
[422709971,1779287448000,-500.0,8.493e-05,2]
[422709974,1779287448000,-500.0,8.493e-05,2]
[422709972,1779287448000,-500.0,8.493e-05,2]
[422709975,1779287448000,-500.0,8.493e-05,2]
[422709962,1779287448000,-500.0,8.493e-05,2]
[422709976,1779287448000,-500.0,8.493e-05,2]
[422709968,1779287448000,-500.0,8.493e-05,2]
[422709967,1779287448000,-845.69,8.493e-05,2]
[422709951,1779287448000,-500.0,8.493e-05,2]
[422709959,1779287448000,-500.0,8.493e-05,2]
[422709978,1779287448000,-500.0,8.493e-05,2]
[422709945,1779287448000,-500.0,8.493e-05,2]
[422709944,1779287448000,-84.52169634,8.493e-05,2]
[422709946,1779287448000,-501.24649237,8.493e-05,2]
[422709949,1779287448000,-500.0,8.493e-05,2]
[422709948,1779287448000,-500.0,8.493e-05,2]
[422709954,1779287448000,-500.0,8.493e-05,2]
[422709955,1779287448000,-781.65,8.493e-05,2]
[422709950,1779287448000,-500.0,8.493e-05,2]
[422709947,1779287448000,-523.37035363,8.493e-05,2]
[422709952,1779287448000,-485.93285497,8.493e-05,2]
[422709953,1779287448000,-500.0,8.493e-05,2]
[422709956,1779287448000,-647.66174337,8.493e-05,2]
[422709957,1779287448000,-500.0,8.493e-05,2]
[422709958,1779287448000,-1260.22,8.493e-05,2]
[422709961,1779287448000,-500.0,8.493e-05,2]
[422709977,1779287448000,-500.0,8.493e-05,2]
[422709995,1779287448000,-500.0,8.493e-05,2]
[422709980,1779287448000,-500.0,8.493e-05,2]
[422710000,1779287448000,-588.98,8.493e-05,2]
[422710001,1779287448000,-2648.51,8.493e-05,2]
[422710003,1779287448000,-500.0,8.493e-05,2]
[422710002,1779287448000,-733.69,8.493e-05,2]
[422710009,1779287448000,-527.08,8.493e-05,2]
[422710005,1779287448000,-500.0,8.493e-05,2]
[422709997,1779287448000,-352.84381917,8.493e-05,2]
[422710007,1779287448000,-500.0,8.493e-05,2]
[422710006,1779287448000,-552.36,8.493e-05,2]
[422710010,1779287448000,-500.0,8.493e-05,2]
[422710011,1779287448000,-722.72,8.493e-05,2]
[422710014,1779287448000,-500.0,8.493e-05,2]
[422710013,1779287448000,-679.08,8.493e-05,2]
[422709985,1779287448000,-500.0,8.493e-05,2]
[422710008,1779287448000,-1140.89,8.493e-05,2]
[422709999,1779287448000,-500.0,8.493e-05,2]
[422710004,1779287448000,-500.0,8.493e-05,2]
[422709998,1779287448000,-500.0,8.493e-05,2]
[422709981,1779287448000,-500.0,8.493e-05,2]
[422709996,1779287448000,-500.0,8.493e-05,2]
[422709986,1779287448000,-884.88,8.493e-05,2]
[422709982,1779287448000,-500.0,8.493e-05,2]
[422709984,1779287448000,-500.0,8.493e-05,2]
[422709988,1779287448000,-545.76,8.493e-05,2]
[422709983,1779287448000,-836.84,8.493e-05,2]
[422709979,1779287448000,-500.0,8.493e-05,2]
[422709990,1779287448000,-500.0,8.493e-05,2]
[422709989,1779287448000,-500.0,8.493e-05,2]
[422709991,1779287448000,-500.0,8.493e-05,2]
[422709992,1779287448000,-588.2183944,8.493e-05,2]
[422709994,1779287448000,-1308.75,8.493e-05,2]
[422710012,1779287448000,-1353.35,8.493e-05,2]
[422709987,1779287448000,-500.0,8.493e-05,2]
[422709993,1779287448000,-500.0,8.493e-05,2]
[422710043,1779287449000,-796.7576,8.493e-05,2]
[422710047,1779287449000,-500.0,8.493e-05,2]
[422710053,1779287449000,-500.0,8.493e-05,2]
[422710041,1779287449000,-555.47,8.493e-05,2]
[422710044,1779287449000,-786.06,8.493e-05,2]
[422710040,1779287449000,-500.0,8.493e-05,2]
[422710046,1779287449000,-500.0,8.493e-05,2]
[422710039,1779287449000,-500.0,8.493e-05,2]
[422710045,1779287449000,-500.0,8.493e-05,2]
[422710049,1779287449000,-500.0,8.493e-05,2]
[422710061,1779287449000,-1447.92,8.493e-05,2]
[422710048,1779287449000,-500.0,8.493e-05,2]
[422710050,1779287449000,-500.0,8.493e-05,2]
[422710052,1779287449000,-1031.7,8.493e-05,2]
[422710054,1779287449000,-500.0,8.493e-05,2]
[422710065,1779287449000,-500.0,8.493e-05,2]
[422710059,1779287449000,-500.0,8.493e-05,2]
[422710060,1779287449000,-842.84,8.493e-05,2]
[422710063,1779287449000,-500.59174331,8.493e-05,2]
[422710034,1779287449000,-500.0,8.493e-05,2]
[422710051,1779287449000,-649.87,8.493e-05,2]
[422710035,1779287449000,-500.0,8.493e-05,2]
[422710022,1779287449000,-500.0,8.493e-05,2]
[422710032,1779287449000,-500.0,8.493e-05,2]
[422710015,1779287449000,-500.0,8.493e-05,2]
[422710017,1779287449000,-500.0,8.493e-05,2]
[422710019,1779287449000,-603.68,8.493e-05,2]
[422710020,1779287449000,-500.0,8.493e-05,2]
[422710016,1779287449000,-500.0,8.493e-05,2]
[422710018,1779287449000,-1236.95,8.493e-05,2]
[422710066,1779287449000,-500.0,8.493e-05,2]
[422710028,1779287449000,-2710.06,8.493e-05,2]
[422710029,1779287449000,-1454.16,8.493e-05,2]
[422710030,1779287449000,-500.0,8.493e-05,2]
[422710021,1779287449000,-1144.88,8.493e-05,2]
[422710023,1779287449000,-879.65,8.493e-05,2]
[422710025,1779287449000,-500.0,8.493e-05,2]
[422710024,1779287449000,-500.0,8.493e-05,2]
[422710026,1779287449000,-537.72,8.493e-05,2]
[422710027,1779287449000,-500.0,8.493e-05,2]
[422710031,1779287449000,-500.0,8.493e-05,2]
[422710037,1779287449000,-500.0,8.493e-05,2]
[422710036,1779287449000,-500.0,8.493e-05,2]
[422710033,1779287449000,-500.0,8.493e-05,2]
[422710038,1779287449000,-788.8,8.493e-05,2]
[422710042,1779287449000,-500.0,8.493e-05,2]
[422710064,1779287449000,-1604.78,8.493e-05,2]
[422710069,1779287449000,-3178.92,8.493e-05,2]
[422710062,1779287449000,-500.0,8.493e-05,2]
[422710084,1779287449000,-764.44,8.493e-05,2]
[422710087,1779287449000,-2622.43,8.493e-05,2]
[422710093,1779287449000,-500.0,8.493e-05,2]
[422710092,1779287449000,-2107.84,8.493e-05,2]
[422710094,1779287449000,-500.0,8.493e-05,2]
[422710055,1779287449000,-629.95,8.493e-05,2]
[422710096,1779287449000,-500.0,8.493e-05,2]
[422710100,1779287449000,-1095.66,8.493e-05,2]
[422710098,1779287449000,-500.0,8.493e-05,2]